fUST/lending_fUST_20241231
["ID","MTS","AMOUNT","RATE_DAILY","PERIOD"]
[347246953,1735626643862,-500.0,0.00019178,2]
[347246954,1735626643871,-500.0,0.00019178,2]
[347246955,1735626643881,-500.0,0.00019178,2]
[347246956,1735626643894,-500.0,0.00019178,2]
[347246957,1735626643904,-500.0,0.00019178,2]
[347246958,1735626643913,-500.0,0.00019178,2]
[347246959,1735626643923,-500.0,0.00019178,2]
[347246960,1735626643934,-500.0,0.00019178,2]
[347246961,1735626643944,-500.0,0.00019178,2]
[347246962,1735626643953,-256.31225777,0.00019178,2]
[347246963,1735626643963,-500.0,0.00019178,2]
[347246964,1735626643972,-500.0,0.00019178,2]
[347246965,1735626643981,-500.0,0.00019178,2]
[347246966,1735626643990,-1501.26,0.00019178,2]
[347246967,1735626644000,-674.79,0.00019178,2]
[347246968,1735626644009,-500.0,0.00019178,2]
[347246969,1735626644019,-500.0,0.00019178,2]
[347246970,1735626644028,-500.0,0.00019178,2]
[347246971,1735626644037,-500.0,0.00019178,2]
[347246972,1735626644047,-220.5597071,0.00019178,2]
[347246973,1735626644056,-500.0,0.00019178,2]
[347246974,1735626644066,-506.88,0.00019178,2]
[347246975,1735626644075,-500.0,0.00019178,2]
[347246976,1735626644084,-500.0,0.00019178,2]
[347246977,1735626644094,-500.0,0.00019178,2]
[347246978,1735626644103,-500.0,0.00019178,2]
[347246979,1735626644112,-500.0,0.00019178,2]
[347246980,1735626644121,-500.0,0.00019178,2]
[347246981,1735626644131,-500.0,0.00019178,2]
[347246982,1735626644140,-351.26168798,0.00019178,2]
[347246983,1735626644149,-500.0,0.00019178,2]
[347246984,1735626644159,-500.0,0.00019178,2]
[347246985,1735626644168,-215.68504,0.00019178,2]
[347246986,1735626644181,-284.31496,0.00019178,2]
[347246987,1735626644191,-500.0,0.00019178,2]
[347246988,1735626644200,-506.97,0.00019178,2]
[347246989,1735626644209,-500.0,0.00019178,2]
[347246990,1735626644219,-500.0,0.00019178,2]
[347246991,1735626644228,-500.0,0.00019178,2]
[347246992,1735626644237,-500.0,0.00019178,2]
[347246993,1735626644247,-500.0,0.00019178,2]
[347246994,1735626644257,-500.0,0.00019178,2]
[347246995,1735626644266,-500.0,0.00019178,2]
[347246996,1735626644276,-500.0,0.00019178,2]
[347246997,1735626644285,-166.94,0.00019178,2]
[347246998,1735626644294,-500.0,0.00019178,2]
[347246999,1735626644303,-500.0,0.00019178,2]
[347247000,1735626644313,-500.0,0.00019178,2]
[347247001,1735626644323,-500.0,0.00019178,2]
[347247002,1735626644332,-500.0,0.00019178,2]
[347247003,1735626644341,-500.0,0.00019178,2]
[347247004,1735626644351,-500.0,0.00019178,2]
[347247005,1735626644360,-306.93225323,0.00019178,2]
[347247006,1735626644369,-503.04,0.00019178,2]
[347247007,1735626644378,-500.0,0.00019178,2]
[347247008,1735626644388,-500.0,0.00019178,2]
[347247009,1735626644397,-500.0,0.00019178,2]
[347247010,1735626644405,-500.0,0.00019178,2]
[347247011,1735626644415,-500.0,0.00019178,2]
[347247012,1735626644424,-500.0,0.00019178,2]
[347247013,1735626644433,-500.0,0.00019178,2]
[347247014,1735626644443,-500.0,0.00019178,2]
[347247015,1735626644452,-581.33,0.00019178,2]
[347247016,1735626644461,-500.0,0.00019178,2]
[347247017,1735626644470,-500.0,0.00019178,2]
[347247018,1735626644479,-609.71,0.00019178,2]
[347247019,1735626644488,-500.0,0.00019178,2]
[347247020,1735626644497,-150.98298675,0.00019178,2]
[347247021,1735626644506,-500.0,0.00019178,2]
[347247022,1735626644515,-500.0,0.00019178,2]
[347247023,1735626644524,-500.0,0.00019178,2]
[347247024,1735626644534,-1006.93,0.00019178,2]
[347247025,1735626644543,-500.0,0.00019178,2]
[347247026,1735626644553,-500.0,0.00019178,2]
[347247027,1735626644563,-500.0,0.00019178,2]
[347247028,1735626644572,-500.0,0.00019178,2]
[347247029,1735626644581,-6091.91753765,0.00019178,2]
[347247032,1735626646319,-44.00571987,0.00019178,2]
[347247039,1735627642130,-157.938864,0.00013973,2]
[347247040,1735627642151,-117.44944776,0.00014575,2]
[347247041,1735627712836,-275.30931983,0.00014429,2]
[347247042,1735627712862,-275.30931983,0.00014575,2]
[347247043,1735627712887,-500.0,0.00015342,2]
[347247044,1735627712912,-12.17030511,0.00016109,2]
[347247045,1735627749117,-224.69068017,0.00015948,2]
[347247046,1735627749139,-230.44530612,0.00016109,2]
[347247047,1735627760097,-257.38438877,0.00016109,2]
[347247048,1735627760119,-500.0,0.00016915,2]
[347247049,1735627760142,-50.75851219,0.00018511,2]
[347247050,1735627760170,-159.12644781,0.00018511,2]
[347247061,1735627832534,-300.0,0.00019177,2]
[347247062,1735627832544,-500.0,0.00019178,2]
[347247063,1735627832553,-502.86460659,0.00019178,2]
[347247064,1735627832563,-500.0,0.00019178,2]
[347247065,1735627832572,-500.0,0.00019178,2]
[347247066,1735627832582,-503.23126151,0.00019178,2]
[347247067,1735627832592,-500.0,0.00019178,2]
[347247068,1735627832601,-500.0,0.00019178,2]
[347247069,1735627832611,-500.0,0.00019178,2]
[347247070,1735627832620,-500.0,0.00019178,2]
[347247071,1735627832630,-506.05334027,0.00019178,2]
[347247072,1735627832644,-579.12741993,0.00019178,2]
[347247073,1735627832653,-236.60438261,0.00019178,2]
[347247074,1735627832663,-500.86610411,0.00019178,2]
[347247075,1735627832673,-500.0,0.00019178,2]
[347247076,1735627832683,-502.95094852,0.00019178,2]
[347247077,1735627832693,-500.0,0.00019178,2]
[347247078,1735627832703,-502.82223287,0.00019178,2]
[347247079,1735627832714,-500.0,0.00019178,2]
[347247080,1735627832723,-511.77501265,0.00019178,2]
[347247081,1735627832734,-500.0,0.00019178,2]
[347247082,1735627832744,-274.86546911,0.00019178,2]
[347247084,1735627832753,-500.0,0.00019178,2]
[347247086,1735627832762,-503.0140394,0.00019178,2]
[347247088,1735627832772,-500.0,0.00019178,2]
[347247090,1735627832783,-501.5503333,0.00019178,2]
[347247092,1735627832792,-500.0,0.00019178,2]
[347247094,1735627832803,-500.0,0.00019178,2]
[347247096,1735627832812,-500.0,0.00019178,2]
[347247098,1735627832820,-501.66399504,0.00019178,2]
[347247100,1735627832830,-500.0,0.00019178,2]
[347247102,1735627832839,-500.0,0.00019178,2]
[347247104,1735627832849,-500.0,0.00019178,2]
[347247106,1735627832858,-1474.18,0.00019178,2]
[347247108,1735627832868,-500.0,0.00019178,2]
[347247110,1735627832878,-500.0,0.00019178,2]
[347247112,1735627832887,-500.0,0.00019178,2]
[347247114,1735627832898,-500.0,0.00019178,2]
[347247116,1735627832907,-500.0,0.00019178,2]
[347247118,1735627832917,-500.0,0.00019178,2]
[347247120,1735627832926,-500.0,0.00019178,2]
[347247121,1735627832936,-500.0,0.00019178,2]
[347247122,1735627832946,-500.0,0.00019178,2]
[347247123,1735627832956,-500.0,0.00019178,2]
[347247124,1735627832965,-964.97,0.00019178,2]
[347247125,1735627832975,-500.0,0.00019178,2]
[347247126,1735627832985,-500.0,0.00019178,2]
[347247127,1735627832994,-500.0,0.00019178,2]
[347247128,1735627833004,-500.0,0.00019178,2]
[347247129,1735627833014,-500.0,0.00019178,2]
[347247130,1735627833024,-500.0,0.00019178,2]
[347247131,1735627833034,-500.0,0.00019178,2]
[347247132,1735627833043,-500.0,0.00019178,2]
[347247133,1735627833052,-500.0,0.00019178,2]
[347247134,1735627833062,-500.0,0.00019178,2]
[347247135,1735627833072,-500.0,0.00019178,2]
[347247136,1735627833081,-500.0,0.00019178,2]
[347247137,1735627833091,-1529.1,0.00019178,2]
[347247138,1735627833100,-494.5,0.00019178,2]
[347247139,1735627833110,-500.0,0.00019178,2]
[347247140,1735627833120,-500.0,0.00019178,2]
[347247141,1735627833130,-500.0,0.00019178,2]
[347247142,1735627833248,-500.0,0.00019178,2]
[347247143,1735627833258,-500.0,0.00019178,2]
[347247144,1735627833267,-500.0,0.00019178,2]
[347247145,1735627833277,-500.0,0.00019178,2]
[347247146,1735627833287,-500.0,0.00019178,2]
[347247147,1735627833296,-500.0,0.00019178,2]
[347247148,1735627833306,-500.0,0.00019178,2]
[347247149,1735627833315,-500.0,0.00019178,2]
[347247150,1735627833325,-500.0,0.00019178,2]
[347247151,1735627833334,-121.82308828,0.00019178,2]
[347247168,1735627838378,-462.47691172,0.00019178,2]
[347247170,1735627838388,-500.0,0.00019178,2]
[347247172,1735627838397,-500.0,0.00019178,2]
[347247174,1735627838407,-504.28325589,0.00019178,2]
[347247176,1735627838417,-504.22197509,0.00019178,2]
[347247178,1735627838426,-500.0,0.00019178,2]
[347247180,1735627838435,-504.01304985,0.00019178,2]
[347247182,1735627838445,-335.50839,0.00019178,2]
[347247184,1735627838456,-164.49161,0.00019178,2]
[347247186,1735627838466,-500.0,0.00019178,2]
[347247188,1735627838475,-112.2149374,0.00019178,2]
[347247193,1735627838508,-389.44469775,0.00019178,2]
[347247195,1735627838517,-500.0,0.00019178,2]
[347247197,1735627838526,-417.84879014,0.00019178,2]
[347247199,1735627838536,-500.0,0.00019178,2]
[347247200,1735627838546,-159.95962785,0.00019178,2]
[347247202,1735627838556,-500.0,0.00019178,2]
[347247203,1735627838565,-286.00745212,0.00019178,2]
[347247205,1735627838575,-239.0,0.00019178,2]
[347247206,1735627838584,-500.0,0.00019178,2]
[347247207,1735627838594,-278.44,0.00019178,2]
[347247208,1735627838604,-387.75910216,0.00019178,2]
[347247210,1735627838613,-500.0,0.00019178,2]
[347247212,1735627838623,-500.0,0.00019178,2]
[347247214,1735627838632,-500.0,0.00019178,2]
[347247216,1735627838644,-500.0,0.00019178,2]
[347247218,1735627838654,-500.0,0.00019178,2]
[347247220,1735627838663,-500.0,0.00019178,2]
[347247222,1735627838673,-501.81609562,0.00019178,2]
[347247223,1735627838683,-500.0,0.00019178,2]
[347247224,1735627838692,-500.0,0.00019178,2]
[347247225,1735627838700,-500.0,0.00019178,2]
[347247226,1735627838709,-156.04567256,0.00019178,2]
[347247227,1735627838719,-500.0,0.00019178,2]
[347247228,1735627838729,-500.0,0.00019178,2]
[347247229,1735627838738,-500.0,0.00019178,2]
[347247230,1735627838747,-62.51742167,0.00019178,2]
[347247231,1735627838762,-437.48257833,0.00019178,2]
[347247232,1735627838771,-500.0,0.00019178,2]
[347247233,1735627838780,-500.0,0.00019178,2]
[347247234,1735627838790,-196.25020381,0.00019178,2]
[347247235,1735627838800,-500.0,0.00019178,2]
[347247236,1735627838810,-500.0,0.00019178,2]
[347247237,1735627838819,-500.0,0.00019178,2]
[347247238,1735627838829,-500.0,0.00019178,2]
[347247239,1735627838838,-6857.38,0.00019178,2]
[347247240,1735627838848,-500.0,0.00019178,2]
[347247241,1735627838857,-500.0,0.00019178,2]
[347247242,1735627838866,-500.0,0.00019178,2]
[347247243,1735627838875,-503.63472708,0.00019178,2]
[347247244,1735627838884,-500.0,0.00019178,2]
[347247245,1735627838893,-500.0,0.00019178,2]
[347247246,1735627838903,-500.0,0.00019178,2]
[347247247,1735627838912,-500.0,0.00019178,2]
[347247248,1735627838921,-403.87688775,0.00019178,2]
[347247249,1735627840461,-96.12311225,0.00019178,2]
[347247250,1735627840471,-219.63011094,0.000194,3]
[347247251,1735627840480,-220.0,0.000194,6]
[347247253,1735627840490,-220.0,0.000194,7]
[347247254,1735627840499,-17.04091304,0.0001945,3]
[347247284,1735627843521,-500.0,0.00019178,2]
[347247285,1735627843532,-482.95908696,0.0001945,3]
[347247286,1735627843542,-500.0,0.00019451,3]
[347247287,1735627843556,-500.0,0.00019451,3]
[347247288,1735627843567,-500.0,0.00019452,3]
[347247289,1735627843577,-500.0,0.00019452,3]
[347247290,1735627843587,-500.0,0.00019452,3]
[347247291,1735627843597,-500.0,0.00019452,3]
[347247292,1735627843606,-1474.18,0.00019452,3]
[347247293,1735627843616,-502.28788854,0.00019452,3]
[347247294,1735627843626,-93.64477515,0.00019452,2]
[347247295,1735627875788,500.0,0.00015342,2]
[347247296,1735627886371,52.18433847,0.00016109,2]
[347247307,1735628788340,150.0,0.00014522,30]
[347247312,1735628851148,-150.0,0.00012969,2]
[347247313,1735628851169,-614.10766876,0.00013154,2]
[347247314,1735628851191,-500.0,0.00013846,2]
[347247315,1735628851211,-164.38027,0.00013973,2]
[347247316,1735628851231,-500.0,0.00014575,2]
[347247317,1735628851252,-447.81566153,0.00016109,2]
[347247318,1735628851273,-4822.84416902,0.00016641,2]
[347247319,1735628946096,-154.02112611,0.00016475,2]
[347247320,1735628946117,-4157.64322713,0.00016641,2]
[347247321,1735628951129,-15834.75688815,0.00016641,2]
[347247322,1735628951156,-500.0,0.00016915,2]
[347247323,1735628951178,-500.0,0.0001776,2]
[347247324,1735628951199,-9282.33131185,0.00018,2]
[347247325,1735628954108,-527.09395232,0.00018,2]
[347247404,1735629038680,-38.62303233,0.00018,2]
[347247405,1735629038691,-377.70696767,0.0001848,2]
[347247406,1735629038725,-112.44403233,0.0001848,2]
[347247408,1735629038735,-443.3216861,0.000185,2]
[347247410,1735629038745,-311.2184007,0.000185,2]
[347247411,1735629038755,-2544.049948,0.00019,3]
[347247412,1735629038765,-158.07865018,0.00019,2]
[347247413,1735629038776,-480.38767473,0.00019078,2]
[347247414,1735629038786,-161.92417454,0.00019078,2]
[347247416,1735629038796,-10688.57543342,0.00019177,2]
[347247418,1735629038809,-884.56790079,0.00019177,2]
[347247420,1735629038820,-103112.86703918,0.00019177,2]
[347247422,1735629038831,-500.0,0.00019177,2]
[347247424,1735629038840,-483.71536429,0.00019177,2]
[347247426,1735629038850,-527.84665965,0.00019177,2]
[347247427,1735629038859,-266.18337029,0.00019178,2]
[347247428,1735629038868,-500.0,0.00019178,2]
[347247429,1735629038878,-500.0,0.00019178,2]
[347247430,1735629038887,-981.94,0.00019178,2]
[347247431,1735629038897,-500.0,0.00019178,2]
[347247432,1735629038906,-500.0,0.00019178,2]
[347247433,1735629038915,-500.0,0.00019178,2]
[347247434,1735629038925,-500.0,0.00019178,2]
[347247435,1735629038934,-500.0,0.00019178,2]
[347247436,1735629038943,-500.0,0.00019178,2]
[347247437,1735629038952,-1351.33,0.00019178,2]
[347247438,1735629038962,-1180.98,0.00019178,2]
[347247439,1735629038971,-151.0,0.00019178,2]
[347247440,1735629038980,-151.0,0.00019178,2]
[347247441,1735629038990,-151.0,0.00019178,2]
[347247442,1735629038999,-270.359736,0.00019178,2]
[347247443,1735629039008,-151.0,0.00019178,2]
[347247444,1735629039018,-151.0,0.00019178,2]
[347247445,1735629039027,-500.0,0.00019178,2]
[347247446,1735629039037,-340.656631,0.00019178,2]
[347247447,1735629039046,-340.656631,0.00019178,2]
[347247448,1735629039055,-500.0,0.00019178,2]
[347247449,1735629039064,-340.656631,0.00019178,2]
[347247450,1735629039074,-340.656631,0.00019178,2]
[347247451,1735629039084,-500.0,0.00019178,2]
[347247452,1735629039093,-500.0,0.00019178,2]
[347247453,1735629039102,-500.0,0.00019178,2]
[347247454,1735629039111,-500.0,0.00019178,2]
[347247455,1735629039121,-500.0,0.00019178,2]
[347247456,1735629039130,-500.0,0.00019178,2]
[347247457,1735629039143,-151.0,0.00019178,2]
[347247458,1735629039152,-151.0,0.00019178,2]
[347247459,1735629039162,-293.668425,0.00019178,2]
[347247460,1735629039171,-531.16298461,0.00019178,2]
[347247461,1735629039180,-500.0,0.00019178,2]
[347247462,1735629039190,-500.0,0.00019178,2]
[347247463,1735629039200,-500.0,0.00019178,2]
[347247464,1735629039209,-500.0,0.00019178,2]
[347247465,1735629039219,-151.0,0.00019178,2]
[347247466,1735629039229,-151.0,0.00019178,2]
[347247467,1735629039238,-500.0,0.00019178,2]
[347247468,1735629039248,-500.0,0.00019178,2]
[347247469,1735629039257,-500.0,0.00019178,2]
[347247470,1735629039266,-500.0,0.00019178,2]
[347247471,1735629039275,-500.0,0.00019178,2]
[347247472,1735629039284,-500.0,0.00019178,2]
[347247473,1735629039294,-159.484729,0.00019178,2]
[347247474,1735629039303,-500.0,0.00019178,2]
[347247475,1735629039313,-500.0,0.00019178,2]
[347247476,1735629039322,-500.0,0.00019178,2]
[347247477,1735629039331,-500.0,0.00019178,2]
[347247478,1735629039341,-500.0,0.00019178,2]
[347247479,1735629039351,-643.48,0.00019178,2]
[347247480,1735629039360,-3138.54,0.00019178,2]
[347247481,1735629039369,-151.0,0.00019178,2]
[347247482,1735629039379,-151.0,0.00019178,2]
[347247483,1735629039389,-500.0,0.00019178,2]
[347247484,1735629039398,-151.0,0.00019178,2]
[347247485,1735629039408,-151.0,0.00019178,2]
[347247486,1735629039417,-1097.91,0.00019178,2]
[347247487,1735629039427,-581.5743862,0.00019178,2]
[347247488,1735629039436,-209.4745602,0.00019178,2]
[347247489,1735629039446,-500.0,0.00019178,2]
[347247490,1735629039455,-500.0,0.00019178,2]
[347247491,1735629039464,-500.0,0.00019178,2]
[347247492,1735629039474,-500.0,0.00019178,2]
[347247493,1735629039483,-500.0,0.00019178,2]
[347247494,1735629039493,-500.0,0.00019178,2]
[347247495,1735629039502,-1213.53,0.00019178,2]
[347247496,1735629039511,-1213.53,0.00019178,2]
[347247497,1735629039520,-1213.53,0.00019178,2]
[347247498,1735629039530,-390.4963191,0.00019178,2]
[347247499,1735629039539,-151.0,0.00019178,2]
[347247500,1735629039549,-152.217315,0.00019178,2]
[347247501,1735629039559,-151.0,0.00019178,2]
[347247502,1735629039569,-151.0,0.00019178,2]
[347247503,1735629039579,-500.0,0.00019178,2]
[347247504,1735629039588,-500.0,0.00019178,2]
[347247505,1735629039598,-500.0,0.00019178,2]
[347247506,1735629039607,-500.0,0.00019178,2]
[347247507,1735629039616,-509.42400963,0.00019178,2]
[347247508,1735629039626,-500.0,0.00019178,2]
[347247509,1735629039635,-500.0,0.00019178,2]
[347247510,1735629039644,-500.0,0.00019178,2]
[347247511,1735629039654,-500.0,0.00019178,2]
[347247512,1735629039663,-500.0,0.00019178,2]
[347247513,1735629039673,-11337.98,0.00019178,2]
[347247514,1735629039682,-500.0,0.00019178,2]
[347247515,1735629039691,-500.0,0.00019178,2]
[347247516,1735629039701,-500.0,0.00019178,2]
[347247517,1735629039710,-151.0,0.00019178,2]
[347247518,1735629039720,-151.0,0.00019178,2]
[347247519,1735629039729,-773.86,0.00019178,2]
[347247520,1735629039738,-507.12,0.00019178,2]
[347247521,1735629039748,-500.0,0.00019178,2]
[347247522,1735629039758,-500.0,0.00019178,2]
[347247523,1735629039767,-171.3182413,0.00019257,2]
[347247524,1735629039776,-981.94,0.0001945,3]
[347247525,1735629039785,-500.0,0.00019451,2]
[347247526,1735629039794,-981.94,0.00019451,3]
[347247527,1735629039805,-2015.67,0.00019451,3]
[347247528,1735629039814,-151.0,0.00019451,2]
[347247529,1735629039823,-227.839086,0.00019451,2]
[347247530,1735629039832,-227.839086,0.00019451,2]
[347247531,1735629039842,-543.25438974,0.00019451,2]
[347247532,1735629039851,-151.0,0.00019451,2]
[347247533,1735629039860,-151.0,0.00019451,2]
[347247534,1735629039870,-1213.53,0.00019451,3]
[347247535,1735629039880,-1213.53,0.00019451,3]
[347247536,1735629039891,-1213.53,0.00019451,3]
[347247537,1735629039900,-1213.53,0.00019451,3]
[347247538,1735629039910,-1213.53,0.00019451,3]
[347247539,1735629039919,-1213.53,0.00019451,3]
[347247540,1735629039928,-1213.53,0.00019451,3]
[347247541,1735629039938,-1213.53,0.00019451,3]
[347247542,1735629039947,-151.0,0.00019451,2]
[347247543,1735629039957,-232.319346,0.00019451,2]
[347247544,1735629039967,-151.0,0.00019451,2]
[347247545,1735629039976,-195.496773,0.00019451,2]
[347247546,1735629039985,-152.844984,0.00019452,2]
[347247547,1735629039994,-155.812774,0.00019452,2]
[347247548,1735629040004,-158.198186,0.00019452,2]
[347247549,1735629040013,-151.0,0.00019452,2]
[347247550,1735629040022,-151.0,0.00019452,2]
[347247551,1735629040032,-500.0,0.00019452,3]
[347247552,1735629040042,-500.0,0.00019452,3]
[347247553,1735629040052,-151.0,0.00019452,2]
[347247554,1735629040061,-151.0,0.00019452,2]
[347247555,1735629040070,-151.0,0.00019452,2]
[347247556,1735629040080,-500.0,0.00019452,3]
[347247557,1735629040089,-500.0,0.00019452,3]
[347247558,1735629040099,-500.0,0.00019452,3]
[347247559,1735629040108,-227.839086,0.00019452,2]
[347247560,1735629040118,-227.839086,0.00019452,2]
[347247561,1735629040127,-227.839086,0.00019452,2]
[347247562,1735629040138,-227.839086,0.00019452,2]
[347247563,1735629040150,-500.0,0.00019452,3]
[347247564,1735629040160,-151.0,0.00019452,2]
[347247565,1735629040170,-151.0,0.00019452,2]
[347247566,1735629040179,-151.0,0.00019452,2]
[347247567,1735629040189,-243.855965,0.00019452,2]
[347247568,1735629040198,-500.0,0.00019452,3]
[347247569,1735629040208,-1351.33,0.00019452,3]
[347247570,1735629040220,-1180.98,0.00019452,3]
[347247572,1735629040230,-151.0,0.00019452,2]
[347247574,1735629040239,-151.0,0.00019452,2]
[347247576,1735629040249,-151.68612,0.00019452,2]
[347247578,1735629040258,-500.0,0.00019452,3]
[347247580,1735629040267,-340.656631,0.00019452,2]
[347247581,1735629040277,-340.656631,0.00019452,2]
[347247582,1735629040287,-500.0,0.00019452,3]
[347247583,1735629040297,-340.656631,0.00019452,2]
[347247584,1735629040307,-340.656631,0.00019452,2]
[347247585,1735629040317,-500.0,0.00019452,3]
[347247586,1735629040326,-500.0,0.00019452,3]
[347247587,1735629040335,-500.0,0.00019452,3]
[347247588,1735629040343,-500.0,0.00019452,3]
[347247589,1735629040352,-500.0,0.00019452,3]
[347247590,1735629040361,-500.0,0.00019452,3]
[347247591,1735629040371,-151.0,0.00019452,2]
[347247592,1735629040380,-151.0,0.00019452,2]
[347247593,1735629040389,-500.0,0.00019452,3]
[347247594,1735629040398,-500.0,0.00019452,3]
[347247595,1735629040407,-500.0,0.00019452,3]
[347247596,1735629040416,-500.0,0.00019452,3]
[347247597,1735629040424,-184.569336,0.00019452,2]
[347247598,1735629040433,-500.0,0.00019452,3]
[347247599,1735629040522,-500.0,0.00019452,3]
[347247600,1735629040532,-500.0,0.00019452,3]
[347247601,1735629040542,-500.0,0.00019452,3]
[347247602,1735629040552,-500.0,0.00019452,3]
[347247603,1735629040563,-500.0,0.00019452,3]
[347247604,1735629040573,-500.0,0.00019452,3]
[347247605,1735629040582,-500.0,0.00019452,3]
[347247606,1735629040592,-500.0,0.00019452,3]
[347247608,1735629040602,-500.0,0.00019452,3]
[347247610,1735629040612,-500.0,0.00019452,3]
[347247612,1735629040622,-643.48,0.00019452,3]
[347247613,1735629040631,-3138.54,0.00019452,3]
[347247614,1735629040641,-151.0,0.00019452,2]
[347247616,1735629040650,-151.0,0.00019452,2]
[347247617,1735629040660,-500.0,0.00019452,3]
[347247619,1735629040670,-151.0,0.00019452,2]
[347247621,1735629040679,-151.0,0.00019452,2]
[347247622,1735629040688,-1097.91,0.00019452,3]
[347247623,1735629040697,-500.0,0.00019452,3]
[347247624,1735629040707,-500.0,0.00019452,3]
[347247625,1735629040716,-525.8336809,0.00019452,3]
[347247627,1735629040725,-500.0,0.00019452,3]
[347247628,1735629040735,-500.0,0.00019452,3]
[347247630,1735629040745,-500.0,0.00019452,3]
[347247631,1735629040754,-151.0,0.00019452,2]
[347247633,1735629040763,-500.0,0.00019452,3]
[347247635,1735629040774,-500.0,0.00019452,3]
[347247636,1735629040783,-500.0,0.00019452,3]
[347247637,1735629040792,-500.0,0.00019452,3]
[347247638,1735629040802,-301.83,0.00019452,3]
[347247639,1735629040811,-500.0,0.00019452,3]
[347247641,1735629040820,-500.0,0.00019452,3]
[347247642,1735629040830,-11337.98,0.00019452,3]
[347247643,1735629040839,-500.0,0.00019452,3]
[347247644,1735629040848,-500.0,0.00019452,3]
[347247645,1735629040858,-500.0,0.00019452,3]
[347247647,1735629040867,-151.0,0.00019452,2]
[347247649,1735629040876,-151.0,0.00019452,2]
[347247650,1735629040885,-773.86,0.00019452,3]
[347247652,1735629040894,-500.0,0.00019452,3]
[347247653,1735629040903,-480.38767472,0.0001957,2]
[347247654,1735629040912,-1213.53,0.00019724,3]
[347247655,1735629040922,-151.0,0.00019725,2]
[347247656,1735629040931,-238.426609,0.00019725,2]
[347247657,1735629040941,-981.94,0.00019725,3]
[347247658,1735629040950,-2015.67,0.00019725,3]
[347247660,1735629040960,-1213.53,0.00019725,3]
[347247661,1735629040969,-151.0,0.00019726,2]
[347247662,1735629040979,-151.0,0.00019726,2]
[347247663,1735629040988,-151.0,0.00019726,2]
[347247664,1735629040998,-151.0,0.00019726,2]
[347247665,1735629041007,-151.0,0.00019726,2]
[347247666,1735629041017,-151.0,0.00019726,2]
[347247667,1735629041027,-151.0,0.00019726,2]
[347247668,1735629041036,-151.0,0.00019726,2]
[347247669,1735629041046,-151.0,0.00019726,2]
[347247670,1735629041055,-151.0,0.00019726,2]
[347247671,1735629041064,-151.0,0.00019726,2]
[347247672,1735629041073,-151.0,0.00019726,2]
[347247673,1735629041082,-152.301829,0.00019726,2]
[347247674,1735629041091,-500.0,0.00019726,3]
[347247675,1735629041100,-500.0,0.00019726,3]
[347247676,1735629041109,-227.839086,0.00019726,2]
[347247677,1735629041118,-227.839086,0.00019726,2]
[347247678,1735629041128,-227.839086,0.00019726,2]
[347247679,1735629041140,-227.839086,0.00019726,2]
[347247680,1735629041150,-500.0,0.00019726,3]
[347247681,1735629041159,-151.0,0.00019726,2]